fUSD/lending_fUSD_20251222
["ID","MTS","AMOUNT","RATE_DAILY","PERIOD"]
[399507086,1766419832930,-151.0,0.00013848,2]
[399507087,1766419832940,-500.0,0.00013848,2]
[399507088,1766419832950,-151.0,0.00013848,2]
[399507089,1766419832960,-500.0,0.00013848,2]
[399507090,1766419832969,-500.0,0.00013848,2]
[399507091,1766419832978,-151.0,0.00013848,2]
[399507092,1766419832988,-500.0,0.00013848,2]
[399507093,1766419832999,-500.0,0.00013848,2]
[399507094,1766419833008,-151.0,0.00013848,2]
[399507095,1766419833018,-500.0,0.00013848,2]
[399507096,1766419833027,-500.0,0.00013848,2]
[399507097,1766419833037,-151.0,0.00013848,2]
[399507098,1766419833047,-500.0,0.00013848,2]
[399507099,1766419833056,-500.0,0.00013848,2]
[399507100,1766419833066,-151.0,0.00013848,2]
[399507101,1766419833076,-500.0,0.00013848,2]
[399507102,1766419833086,-500.0,0.00013848,2]
[399507103,1766419833096,-151.0,0.00013848,2]
[399507104,1766419833105,-329.33117884,0.00013848,2]
[399507105,1766419833118,-170.66882116,0.00013848,2]
[399507106,1766419833128,-500.0,0.00013848,2]
[399507107,1766419833138,-500.0,0.00013848,2]
[399507108,1766419833147,-500.0,0.00013848,2]
[399507109,1766419833156,-500.0,0.00013848,2]
[399507110,1766419833166,-500.0,0.00013848,2]
[399507111,1766419833184,-500.0,0.00013848,2]
[399507112,1766419833196,-500.0,0.00013848,2]
[399507113,1766419833206,-500.0,0.00013848,2]
[399507114,1766419833215,-200.0,0.00013848,2]
[399507115,1766419833225,-200.0,0.00013848,2]
[399507116,1766419833236,-820.57,0.0001385,2]
[399507117,1766419833247,-765.19,0.00013861,2]
[399507118,1766419833256,-166.66,0.00013874,2]
[399507119,1766419833266,-263.35,0.00013902,2]
[399507120,1766419833276,-179.0,0.00013935,2]
[399507121,1766419833286,-763.49,0.00014021,2]
[399507122,1766419833296,-166.66,0.00014049,2]
[399507123,1766419833306,-311.0,0.0001411,2]
[399507124,1766419833315,-820.57,0.00014124,2]
[399507125,1766419833325,-1709.32974066,0.00014167,2]
[399507126,1766419833338,-143.09025934,0.00014167,2]
[399507127,1766419833348,-166.66,0.00014224,2]
[399507128,1766419833357,-93.80974066,0.000143,2]
[399507129,1766419833376,-407.45343911,0.000143,2]
[399507130,1766419833387,-500.0,0.000143,2]
[399507131,1766419833398,-500.0,0.000143,2]
[399507132,1766419833408,-500.0,0.00014396,2]
[399507133,1766419833417,-200.0,0.00014396,2]
[399507134,1766419833429,-200.0,0.00014396,2]
[399507135,1766419833438,-820.57,0.00014398,2]
[399507136,1766419833448,-166.66,0.000144,2]
[399507137,1766419833458,-166.66,0.00014575,2]
[399507138,1766419833468,-481.59376241,0.00014619,2]
[399507139,1766419833479,-1075.79727746,0.00014649,2]
[399507140,1766419833489,-820.57,0.00014672,2]
[399507141,1766419833498,-263.35,0.00014675,2]
[399507142,1766419833508,-418.50482497,0.00014752,2]
[399507293,1766419841163,-81.49517503,0.00014752,2]
[399507294,1766419841172,-352.0,0.00014838,2]
[399507296,1766419841183,-1001.47727649,0.00014848,2]
[399507298,1766419841192,-241.0,0.00014867,2]
[399507300,1766419841202,-1500.87,0.00014871,2]
[399507302,1766419841211,-469.0,0.00014897,2]
[399507303,1766419841221,-848.12384569,0.0001492,2]
[399507304,1766419841255,-744.87615431,0.0001492,2]
[399507305,1766419841265,-159.0,0.00014926,2]
[399507306,1766419841274,-1000.0,0.00014942,2]
[399507307,1766419841284,-500.0,0.00014944,2]
[399507308,1766419841294,-200.0,0.00014944,2]
[399507309,1766419841304,-200.0,0.00014944,2]
[399507310,1766419841313,-820.57,0.00014946,2]
[399507311,1766419841323,-978.0,0.0001495,2]
[399507312,1766419841333,-150.0,0.00014968,2]
[399507313,1766419841342,-1072.0,0.00014979,2]
[399507314,1766419841352,-1000.0,0.00015067,2]
[399507315,1766419841362,-195.0,0.00015068,2]
[399507316,1766419841372,-600.0,0.00015068,2]
[399507317,1766419841381,-250.0,0.00015068,2]
[399507318,1766419841391,-195.0,0.00015068,2]
[399507319,1766419841401,-300.0,0.00015068,2]
[399507320,1766419841410,-420.0,0.00015141,2]
[399507321,1766419841419,-242.0,0.00015141,2]
[399507322,1766419841429,-1514.07833779,0.000152,2]
[399507323,1766419841441,-165.92166221,0.000152,2]
[399507324,1766419841451,-351.53613784,0.0001522,2]
[399507325,1766419841462,-469.07386216,0.0001522,2]
[399507326,1766419841472,-151.0,0.00015255,2]
[399507327,1766419841482,-151.0,0.00015255,2]
[399507328,1766419841491,-150.0,0.00015288,2]
[399507329,1766419841501,-150.0,0.00015288,2]
[399507330,1766419841511,-150.0,0.00015288,2]
[399507331,1766419841520,-150.0,0.00015288,2]
[399507332,1766419841530,-150.0,0.00015288,2]
[399507333,1766419841539,-150.0,0.00015288,2]
[399507334,1766419841549,-151.97105388,0.00015288,2]
[399507335,1766419841560,-150.0,0.00015288,2]
[399507336,1766419841570,-153.06018393,0.00015288,2]
[399507337,1766419841580,-150.0,0.00015288,2]
[399507338,1766419841590,-439.65,0.0001544,2]
[399507339,1766419841605,-263.35,0.00015447,2]
[399507340,1766419841614,-150.0,0.00015476,2]
[399507341,1766419841624,-500.0,0.00015492,2]
[399507342,1766419841634,-200.0,0.00015492,2]
[399507343,1766419841645,-200.0,0.00015492,2]
[399507344,1766419841655,-150.0,0.00015571,2]
[399507345,1766419841664,-150.0,0.00015665,2]
[399507346,1766419841675,-3619.64845893,0.00015754,2]
[399507347,1766419841687,-229.59762092,0.00015754,2]
[399507348,1766419841697,-244.87014285,0.00015754,2]
[399507349,1766419841706,-151.0,0.00015789,2]
[399507350,1766419841716,-3180.23548334,0.0001581,2]
[399507351,1766419841726,-500.0,0.00015833,2]
[399507352,1766419841735,-500.0,0.00015833,2]
[399507353,1766419841745,-152.659837,0.00015833,2]
[399507354,1766419841755,-500.19179488,0.00015833,2]
[399507356,1766419841765,-361.50690414,0.00015834,2]
[399507358,1766419841774,-401.11567192,0.00015834,2]
[399507360,1766419841784,-500.0,0.00015834,2]
[399507362,1766419841793,-500.0,0.00015834,2]
[399507364,1766419841803,-500.0,0.00015834,2]
[399507366,1766419841812,-500.0,0.00015834,2]
[399507368,1766419841821,-525.99859536,0.00015834,2]
[399507370,1766419841830,-500.0,0.00015834,2]
[399507372,1766419841839,-500.0,0.00015834,2]
[399507374,1766419841848,-500.0,0.00015834,2]
[399507375,1766419841858,-500.0,0.00015834,2]
[399507378,1766419841868,-500.0,0.00015834,2]
[399507379,1766419841877,-572.01503076,0.00015834,2]
[399507380,1766419841886,-500.0,0.00015834,2]
[399507381,1766419841896,-500.0,0.00015834,2]
[399507382,1766419841906,-500.0,0.00015834,2]
[399507383,1766419841916,-500.0,0.00015834,2]
[399507384,1766419841925,-500.0,0.00015834,2]
[399507385,1766419841935,-500.0,0.00015834,2]
[399507386,1766419841945,-500.0,0.00015834,2]
[399507387,1766419841954,-509.35122608,0.00015834,2]
[399507388,1766419841963,-500.0,0.00015834,2]
[399507389,1766419841974,-1000000.0,0.00015835,2]
[399507390,1766419841983,-150.0,0.00015854,2]
[399507391,1766419841993,-150.0,0.00015854,2]
[399507392,1766419842002,-150.0,0.00015854,2]
[399507393,1766419842012,-3619.64845889,0.00015881,2]
[399507394,1766419842022,-299.84255779,0.0001591,2]
[399507395,1766419842031,-229.59762092,0.00015918,2]
[399507396,1766419842041,-3180.23548334,0.00015931,2]
[399507397,1766419842051,-446.80975449,0.00015999,2]
[399507398,1766419842060,-3619.64845889,0.00016009,2]
[399507399,1766419842069,-500.0,0.0001604,2]
[399507400,1766419842079,-200.0,0.0001604,2]
[399507401,1766419842090,-200.0,0.0001604,2]
[399507402,1766419842101,-150.0,0.00016043,2]
[399507403,1766419842111,-3180.23548334,0.00016052,2]
[399507404,1766419842121,-229.59762092,0.00016081,2]
[399507405,1766419842131,-244.87014283,0.00016104,2]
[399507406,1766419842140,-9999.99,0.00016116,2]
[399507407,1766419842150,-3619.64845889,0.00016136,2]
[399507408,1766419842160,-150.0,0.00016137,2]
[399507409,1766419842170,-1358.3835,0.00016151,2]
[399507410,1766419842180,-1000.0,0.00016151,2]
[399507411,1766419842189,-156.49671297,0.00016151,2]
[399507412,1766419842199,-3180.23548334,0.00016173,2]
[399507413,1766419842209,-263.35,0.00016219,2]
[399507414,1766419842220,-150.0,0.00016231,2]
[399507415,1766419842230,-229.59762092,0.00016245,2]
[399507416,1766419842239,-151.61536568,0.00016247,2]
[399507417,1766419842250,-555.13,0.0001625,2]
[399507418,1766419842260,-555.13,0.0001625,2]
[399507419,1766419842270,-555.13,0.0001625,2]
[399507420,1766419842281,-555.13,0.0001625,2]
[399507421,1766419842290,-500.0,0.0001625,2]
[399507422,1766419842299,-500.0,0.0001625,2]
[399507423,1766419842310,-500.0,0.0001625,2]
[399507424,1766419842320,-516.98703882,0.0001625,2]
[399507425,1766419842330,-500.0,0.0001625,2]
[399507426,1766419842339,-500.0,0.0001625,2]
[399507427,1766419842348,-500.0,0.0001625,2]
[399507428,1766419842358,-508.14814092,0.0001625,2]
[399507429,1766419842368,-500.0,0.0001625,2]
[399507430,1766419842377,-596.20415987,0.0001625,2]
[399507431,1766419842387,-500.0,0.0001625,2]
[399507432,1766419842396,-500.0,0.0001625,2]
[399507433,1766419842406,-500.0,0.0001625,2]
[399507434,1766419842417,-500.0,0.0001625,2]
[399507435,1766419842427,-799.31,0.0001625,2]
[399507436,1766419842437,-799.31,0.0001625,2]
[399507437,1766419842447,-799.31,0.0001625,2]
[399507438,1766419842458,-799.31,0.0001625,2]
[399507439,1766419842469,-500.0,0.0001625,2]
[399507440,1766419842480,-500.0,0.0001625,2]
[399507441,1766419842490,-500.0,0.0001625,2]
[399507442,1766419842499,-240.54492711,0.0001625,2]
[399507443,1766419842509,-3619.64845889,0.00016263,2]
[399507444,1766419842520,-3180.23548334,0.00016294,2]
[399507445,1766419842538,-156.49671293,0.00016338,2]
[399507446,1766419842548,-150.271,0.00016351,2]
[399507447,1766419842558,-150.0,0.00016351,2]
[399507448,1766419842568,-3457.0,0.00016351,2]
[399507449,1766419842578,-1609.0,0.00016351,2]
[399507450,1766419842588,-1332.718,0.00016351,2]
[399507451,1766419842599,-518.0,0.00016351,2]
[399507452,1766419842611,-1264.744,0.00016351,2]
[399507453,1766419842621,-564.0,0.00016351,2]
[399507454,1766419842630,-2429.0,0.00016351,2]
[399507455,1766419842639,-6530.0,0.00016351,2]
[399507456,1766419842651,-3619.64845889,0.00016391,2]
[399507457,1766419842663,-229.59762092,0.00016409,2]
[399507458,1766419842675,-3180.23548334,0.00016416,2]
[399507459,1766419842684,-150.0,0.0001642,2]
[399507460,1766419842695,-150.0,0.0001642,2]
[399507461,1766419842704,-150.0,0.0001642,2]
[399507462,1766419842714,-273.54560927,0.00016428,2]
[399507463,1766419842724,-500.0,0.00016437,2]
[399507464,1766419842734,-500.0,0.00016437,2]
[399507465,1766419842744,-500.0,0.00016437,2]
[399507466,1766419842754,-2253.1,0.00016438,2]
[399507467,1766419842764,-500.0,0.00016438,2]
[399507468,1766419842774,-500.0,0.00016438,2]
[399507469,1766419842783,-500.0,0.00016438,2]
[399507470,1766419842792,-500.0,0.00016438,2]
[399507471,1766419842802,-500.0,0.00016438,2]
[399507472,1766419842813,-225.92,0.00016438,2]
[399507473,1766419842824,-600.0,0.00016438,2]
[399507474,1766419842834,-800.0,0.00016438,2]
[399507475,1766419842843,-164.47,0.0001644,2]
[399507476,1766419842853,-164.47,0.0001644,2]
[399507477,1766419842864,-244.87014283,0.00016453,2]
[399507478,1766419842873,-3619.64845889,0.00016518,2]
[399507479,1766419842882,-156.49671293,0.00016526,2]
[399507480,1766419842891,-3180.23548334,0.00016537,2]
[399507481,1766419842901,-303.35054938,0.00016553,2]
[399507482,1766419842912,-161.2469007,0.00016553,2]
[399507483,1766419842921,-201.93286099,0.00016553,2]
[399507484,1766419842931,-250.0,0.00016553,2]
[399507485,1766419842940,-250.0,0.00016553,2]
[399507486,1766419842950,-250.0,0.00016553,2]
[399507487,1766419842963,-151.0,0.00016553,2]
[399507488,1766419842985,-250.0,0.00016553,2]
[399507489,1766419843006,-250.0,0.00016553,2]
[399507490,1766419843031,-250.0,0.00016553,2]
[399507491,1766419843053,-250.0,0.00016553,2]
[399507492,1766419843076,-250.0,0.00016553,2]
[399507493,1766419843100,-250.0,0.00016553,2]
[399507494,1766419843121,-250.0,0.00016553,2]
[399507495,1766419843145,-151.0,0.00016553,2]
[399507496,1766419843166,-250.0,0.00016553,2]
[399507497,1766419843191,-250.0,0.00016553,2]
[399507498,1766419843215,-250.0,0.00016553,2]
[399507499,1766419843239,-250.0,0.00016553,2]
[399507500,1766419843263,-250.0,0.00016553,2]
[399507501,1766419843284,-250.0,0.00016553,2]
[399507503,1766419843295,-250.0,0.00016553,2]
[399507505,1766419843305,-620.0,0.00016553,2]
[399507507,1766419843314,-250.0,0.00016553,2]
[399507508,1766419843324,-500.0,0.00016553,2]
[399507509,1766419843334,-250.0,0.00016553,2]
[399507510,1766419843344,-500.0,0.00016553,2]
[399507511,1766419843353,-500.0,0.00016553,2]
[399507512,1766419843363,-500.0,0.00016553,2]
[399507514,1766419843372,-500.0,0.00016553,2]
[399507515,1766419843382,-250.0,0.00016553,2]
[399507516,1766419843391,-500.0,0.00016553,2]
[399507517,1766419843401,-348.97018415,0.00016553,2]
[399507518,1766419843410,-500.0,0.00016553,2]
[399507519,1766419843420,-500.0,0.00016553,2]
[399507520,1766419843430,-500.0,0.00016553,2]
[399507521,1766419843440,-454.88526239,0.00016553,2]
[399507522,1766419843450,-500.0,0.00016553,2]
[399507523,1766419843461,-500.0,0.00016553,2]
[399507524,1766419843471,-500.0,0.00016553,2]
[399507525,1766419843481,-500.0,0.00016553,2]
[399507526,1766419843491,-201.93286099,0.00016553,2]
[399507527,1766419843500,-500.0,0.00016553,2]
[399507528,1766419843510,-695.39793187,0.00016553,2]
[399507529,1766419843519,-500.0,0.00016553,2]
[399507530,1766419843528,-553.64373807,0.00016553,2]
[399507531,1766419843538,-500.0,0.00016553,2]
[399507532,1766419843548,-500.0,0.00016553,2]
[399507533,1766419843557,-250.0,0.00016553,2]
[399507534,1766419843567,-250.0,0.00016553,2]
[399507535,1766419843576,-250.0,0.00016553,2]
[399507536,1766419843587,-250.0,0.00016553,2]
[399507537,1766419843597,-322.6107,0.00016553,2]
[399507538,1766419843611,-250.0,0.00016553,2]
[399507539,1766419843620,-500.0,0.00016553,2]
[399507540,1766419843629,-250.0,0.00016553,2]
[399507541,1766419843639,-500.0,0.00016553,2]
[399507542,1766419843650,-250.0,0.00016553,2]
[399507543,1766419843660,-250.0,0.00016553,2]
[399507544,1766419843670,-151.0,0.00016553,2]
[399507545,1766419843681,-500.0,0.00016553,2]
[399507546,1766419843690,-250.0,0.00016553,2]
[399507547,1766419843699,-500.0,0.00016553,2]
[399507548,1766419843709,-250.0,0.00016553,2]
[399507549,1766419843718,-250.0,0.00016553,2]
[399507551,1766419843932,-500.0,0.00016553,2]
[399507552,1766419843942,-500.0,0.00016553,2]
[399507553,1766419843952,-250.0,0.00016553,2]
[399507554,1766419843962,-500.0,0.00016553,2]
[399507555,1766419843972,-250.0,0.00016553,2]
[399507556,1766419843982,-500.0,0.00016553,2]
[399507557,1766419843991,-250.0,0.00016553,2]
[399507558,1766419844002,-500.0,0.00016553,2]
[399507559,1766419844012,-250.0,0.00016553,2]
[399507560,1766419844022,-500.0,0.00016553,2]
[399507561,1766419844031,-500.0,0.00016553,2]
[399507562,1766419844041,-250.0,0.00016553,2]
[399507563,1766419844050,-250.0,0.00016553,2]
[399507564,1766419844059,-500.0,0.00016553,2]
[399507565,1766419844069,-500.0,0.00016553,2]
[399507566,1766419844078,-250.0,0.00016553,2]
[399507567,1766419844088,-250.0,0.00016553,2]
[399507568,1766419844098,-500.0,0.00016553,2]
[399507569,1766419844107,-500.0,0.00016553,2]
[399507570,1766419844117,-250.0,0.00016553,2]
[399507571,1766419844126,-500.0,0.00016553,2]
[399507572,1766419844136,-500.0,0.00016553,2]
[399507573,1766419844145,-250.0,0.00016553,2]
[399507574,1766419844154,-500.0,0.00016553,2]
[399507575,1766419844163,-500.0,0.00016553,2]
[399507576,1766419844172,-250.0,0.00016553,2]
[399507577,1766419844182,-500.0,0.00016553,2]
[399507578,1766419844192,-500.0,0.00016553,2]
[399507579,1766419844201,-250.0,0.00016553,2]
[399507580,1766419844211,-500.0,0.00016553,2]
[399507581,1766419844221,-500.0,0.00016553,2]
[399507582,1766419844230,-250.0,0.00016553,2]
[399507583,1766419844240,-500.0,0.00016553,2]
[399507584,1766419844249,-220.0,0.00016553,2]
[399507585,1766419844259,-500.0,0.00016553,2]
[399507586,1766419844269,-500.0,0.00016553,2]
[399507587,1766419844278,-220.0,0.00016553,2]
[399507588,1766419844291,-500.0,0.00016553,2]
[399507589,1766419844301,-220.0,0.00016553,2]
[399507590,1766419844311,-500.0,0.00016553,2]
[399507591,1766419844320,-220.0,0.00016553,2]
[399507592,1766419844330,-500.0,0.00016553,2]
[399507593,1766419844340,-220.0,0.00016553,2]
[399507594,1766419844350,-500.0,0.00016553,2]
[399507595,1766419844360,-220.65667203,0.00016553,2]
[399507596,1766419844370,-500.0,0.00016553,2]
[399507597,1766419844380,-500.0,0.00016553,2]
[399507598,1766419844390,-500.0,0.00016553,2]
[399507599,1766419844399,-250.0,0.00016553,2]
[399507600,1766419844409,-500.0,0.00016553,2]
[399507601,1766419844419,-250.0,0.00016553,2]
[399507602,1766419844428,-500.0,0.00016553,2]
[399507603,1766419844438,-250.0,0.00016553,2]
[399507604,1766419844448,-500.0,0.00016553,2]
[399507605,1766419844458,-250.0,0.00016553,2]
[399507607,1766419844468,-250.0,0.00016553,2]
[399507609,1766419844478,-250.0,0.00016553,2]
[399507611,1766419844491,-250.0,0.00016553,2]
[399507613,1766419844500,-200.0,0.00016553,2]
[399507615,1766419844510,-250.0,0.00016553,2]
[399507616,1766419844520,-207.4,0.00016553,2]
[399507617,1766419844530,-250.0,0.00016553,2]
[399507618,1766419844540,-1451.69716232,0.00016553,2]
[399507619,1766419844550,-215.0738,0.00016553,2]
[399507620,1766419844559,-250.0,0.00016553,2]
[399507621,1766419844569,-250.0,0.00016553,2]
[399507622,1766419844579,-223.0315306,0.00016553,2]
[399507623,1766419844590,-250.0,0.00016553,2]
[399507624,1766419844602,-250.0,0.00016553,2]
[399507625,1766419844613,-231.28369723,0.00016553,2]
[399507626,1766419844622,-250.0,0.00016553,2]
[399507627,1766419844632,-250.0,0.00016553,2]
[399507628,1766419844643,-239.84119403,0.00016553,2]
[399507629,1766419844653,-250.0,0.00016553,2]
[399507630,1766419844663,-248.71531821,0.00016553,2]
[399507631,1766419844674,-250.0,0.00016553,2]
[399507632,1766419844684,-257.91778498,0.00016553,2]
[399507633,1766419844694,-250.0,0.00016553,2]
[399507634,1766419844707,-267.46074303,0.00016553,2]
[399507635,1766419844717,-250.0,0.00016553,2]
[399507636,1766419844727,-250.0,0.00016553,2]
[399507637,1766419844738,-250.0,0.00016553,2]
[399507638,1766419844747,-250.0,0.00016553,2]
[399507639,1766419844758,-250.0,0.00016553,2]
[399507640,1766419844768,-250.0,0.00016553,2]
[399507641,1766419844778,-229.59762092,0.00016573,2]
[399507642,1766419844789,-207.4,0.00016587,2]
[399507643,1766419844798,-500.0,0.00016588,2]
[399507644,1766419844808,-200.0,0.00016588,2]
[399507645,1766419844818,-200.0,0.00016588,2]
[399507646,1766419844827,-587.0,0.00016591,2]
[399507647,1766419844837,-150.0,0.00016609,2]
[399507648,1766419844847,-3619.64845889,0.00016645,2]
[399507649,1766419844856,-3180.23548334,0.00016658,2]
[399507650,1766419844866,-150.0,0.00016703,2]
[399507651,1766419844875,-2253.1,0.00016712,2]
[399507652,1766419844886,-165.5,0.00016712,2]
[399507653,1766419844899,-156.49671293,0.00016713,2]
[399507654,1766419844908,-2351.0,0.0001672,2]
[399507655,1766419844918,-229.59762092,0.00016736,2]
[399507656,1766419844929,-3619.64845889,0.00016773,2]
[399507657,1766419844939,-3180.23548334,0.00016779,2]
[399507658,1766419844949,-150.0,0.00016798,2]
[399507659,1766419844959,-555.13,0.00016808,2]
[399507660,1766419844969,-799.31,0.00016808,2]
[399507661,1766419844981,-439.65,0.0001681,2]
[399507662,1766419844991,-156.49671293,0.000169,2]
[399507663,1766419845001,-10000.0,0.000169,2]
[399507664,1766419845011,-998.28649574,0.000169,2]
[399507665,1766419845020,-3180.23548334,0.000169,2]
[399507666,1766419845030,-3619.64845889,0.000169,2]
[399507667,1766419845041,-229.59762092,0.000169,2]
[399507668,1766419845050,-4128.51251646,0.000169,2]
[399507669,1766419845059,-383.86135003,0.000169,2]
[399507670,1766419845069,-844.93481224,0.000169,2]
[399507671,1766419845079,-1484.46368982,0.000169,2]
[399507672,1766419845088,-1000.0,0.00016951,2]
[399507673,1766419845100,-1000.0,0.00016971,2]
[399507674,1766419845110,-500.0,0.00016972,2]
[399507675,1766419845122,-500.0,0.00016973,2]
[399507676,1766419845131,-500.0,0.00016973,2]
[399507677,1766419845140,-500.0,0.00016973,2]
[399507678,1766419845150,-500.0,0.00016973,2]
[399507679,1766419845160,-500.0,0.00016973,2]
[399507680,1766419845170,-500.0,0.00016973,2]
[399507681,1766419845179,-500.0,0.00016973,2]
[399507682,1766419845188,-500.0,0.00016973,2]
[399507683,1766419845197,-500.0,0.00016973,2]
[399507684,1766419845206,-607.27794766,0.00016973,2]
[399507685,1766419845215,-500.0,0.00016973,2]
[399507686,1766419845224,-500.0,0.00016973,2]
[399507687,1766419845234,-500.0,0.00016973,2]
[399507688,1766419845243,-179.47316237,0.00016973,2]
[399507689,1766419845252,-517.55500559,0.00016973,2]
[399507690,1766419845262,-500.0,0.00016973,2]
[399507691,1766419845272,-500.0,0.00016973,2]
[399507692,1766419845281,-187.58612974,0.00016973,2]
[399507693,1766419845291,-500.0,0.00016973,2]
[399507694,1766419845301,-500.0,0.00016973,2]
[399507695,1766419845311,-500.0,0.00016973,2]
[399507696,1766419845321,-473.51090272,0.00016973,2]
[399507697,1766419845331,-500.0,0.00016973,2]
[399507698,1766419845341,-500.0,0.00016973,2]
[399507699,1766419845350,-500.0,0.00016973,2]
[399507700,1766419845359,-500.0,0.00016973,2]
[399507701,1766419845369,-500.0,0.00016973,2]
[399507702,1766419845378,-500.0,0.00016973,2]
[399507703,1766419845388,-192.33860374,0.00016973,2]
[399507704,1766419845398,-500.0,0.00016973,2]
[399507705,1766419845408,-500.0,0.00016973,2]
[399507706,1766419845417,-500.0,0.00016973,2]
[399507707,1766419845426,-500.16141079,0.00016973,2]
[399507708,1766419845435,-468.6988227,0.00016973,2]
[399507709,1766419845445,-344.75321982,0.00016973,2]
[399507710,1766419845455,-523.16788729,0.00016973,2]
[399507711,1766419845464,-500.0,0.00016973,2]
[399507712,1766419845475,-500.0,0.00016973,2]
[399507713,1766419845492,-500.0,0.00016973,2]
[399507714,1766419845504,-166.96828513,0.00016973,2]
[399507715,1766419845515,-500.0,0.00016973,2]
[399507716,1766419845525,-500.0,0.00016973,2]
[399507717,1766419845535,-500.0,0.00016973,2]
[399507718,1766419845544,-161.12986217,0.00016973,2]
[399507719,1766419845555,-500.0,0.00016973,2]
[399507720,1766419845565,-500.45563157,0.00016973,2]
[399507721,1766419845575,-500.0,0.00016973,2]
[399507722,1766419845586,-500.0,0.00016973,2]
[399507723,1766419845597,-500.0,0.00016973,2]
[399507724,1766419845608,-220.3394429,0.00016973,2]
[399507725,1766419845618,-500.0,0.00016973,2]
[399507726,1766419845627,-500.19873097,0.00016973,2]
[399507727,1766419845638,-500.0,0.00016973,2]
[399507728,1766419845648,-577.70558009,0.00016973,2]
[399507729,1766419845656,-500.0,0.00016973,2]
[399507730,1766419845668,-500.0,0.00016973,2]
[399507731,1766419845677,-500.0,0.00016973,2]
[399507732,1766419845686,-500.0,0.00016973,2]
[399507733,1766419845707,-150.0,0.00016973,2]
[399507734,1766419845938,-200.0,0.00016974,2]
[399507735,1766419845966,-2253.1,0.00016986,2]
[399507736,1766419845991,-53107.26,0.00016986,2]
[399507737,1766419846012,-156.00450993,0.00016986,2]
[399507738,1766419846022,-160.79668621,0.00016986,2]
[399507739,1766419846031,-150.0,0.00016986,2]
[399507740,1766419846041,-150.0,0.00016986,2]
[399507741,1766419846051,-600.0,0.00016986,2]
[399507742,1766419846061,-273.54560927,0.0001699,2]
[399507743,1766419846071,-273.54560927,0.0001699,2]
[399507744,1766419846081,-263.35,0.00016992,2]
[399507745,1766419846092,-555.13,0.00016999,2]
[399507746,1766419846103,-555.13,0.00016999,2]
[399507747,1766419846114,-555.13,0.00016999,2]
[399507748,1766419846126,-555.13,0.00016999,2]
[399507750,1766419846135,-555.13,0.00016999,2]
[399507751,1766419846145,-555.13,0.00016999,2]
[399507752,1766419846155,-555.13,0.00016999,2]
[399507754,1766419846165,-555.13,0.00016999,2]
[399507755,1766419846175,-555.13,0.00016999,2]
[399507756,1766419846185,-555.13,0.00016999,2]
[399507757,1766419846195,-555.13,0.00016999,2]
[399507758,1766419846205,-555.13,0.00016999,2]
[399507759,1766419846214,-555.13,0.00016999,2]
[399507760,1766419846223,-555.13,0.00016999,2]
[399507761,1766419846234,-555.13,0.00016999,2]
[399507762,1766419846244,-555.13,0.00016999,2]
[399507763,1766419846254,-555.13,0.00016999,2]